bitfinex/quotes_BTCUSD_20251230
["timestamp","ask_amount","ask_price","bid_price","bid_amount"]
[1767119944618,0.56007337,88454.0,88444.0,0.0002508]
[1767119945199,0.01130543,88453.0,88444.0,0.0002508]
[1767119945715,0.56007337,88454.0,88444.0,0.0002508]
[1767119946343,0.54876806,88454.0,88444.0,0.0002508]
[1767119946718,0.06783521,88450.0,88444.0,0.0002508]
[1767119946922,0.14948582,88450.0,88444.0,0.0002508]
[1767119947102,0.0113062,88447.0,88437.0,0.01132]
[1767119947309,0.01130658,88444.0,88437.0,0.01132]
[1767119948274,0.01130671,88443.0,88437.0,0.01132]
[1767119948420,0.01130735,88438.0,88433.0,0.01132]
[1767119948608,0.01130722,88439.0,88433.0,0.01132]
[1767119948807,0.0113071,88440.0,88433.0,0.01132]
[1767119948808,0.01130697,88441.0,88433.0,0.01132]
[1767119949361,0.54876806,88443.0,88433.0,0.01132]
[1767119949519,0.54876806,88443.0,88441.0,0.000549]
[1767119949719,0.01130658,88444.0,88441.0,0.000549]
[1767119950160,0.01130658,88444.0,88433.0,0.01142663]
[1767119950326,0.14948646,88445.0,88433.0,0.01142663]
[1767119950523,0.54876806,88443.0,88433.0,0.01142663]
[1767119953225,0.54876806,88450.0,88443.0,0.000549]
[1767119953431,0.01130595,88449.0,88443.0,0.000549]
[1767119953658,0.01130595,88449.0,88440.0,0.14247]
[1767119954326,0.57143388,88450.0,88440.0,0.14247]
[1767119954549,0.56012806,88450.0,88440.0,0.14247]
[1767119955230,0.06783136,88455.0,88450.0,0.000549]
[1767119955451,0.01132,88453.0,88450.0,0.000305]
[1767119955640,0.02262543,88453.0,88450.0,0.000305]
[1767119955850,0.01130569,88451.0,88441.0,0.14247]
[1767119955999,0.56007375,88451.0,88437.0,0.01130748]
[1767119956405,0.54876806,88451.0,88438.0,0.01130735]
[1767119956603,0.56007375,88451.0,88438.0,0.14414]
[1767119956813,0.01130582,88450.0,88438.0,0.14414]
[1767119956993,0.6166036,88450.0,88438.0,0.14414]
[1767119957198,0.69584806,88450.0,88436.0,0.01130761]
[1767119957417,0.69584806,88450.0,88438.0,0.01130735]
[1767119957916,0.53736806,88450.0,88439.0,0.15544722]
[1767119958266,0.01683762,88453.0,88439.0,0.15544722]
[1767119958470,0.53736806,88450.0,88439.0,0.15544722]
[1767119958672,0.54876806,88450.0,88439.0,0.14414]
[1767119958828,0.54876806,88450.0,88439.0,0.15544722]
[1767119959041,0.54876806,88450.0,88439.0,0.14414]
[1767119960173,0.01132,88454.0,88441.0,0.14414]
[1767119960372,0.02262531,88454.0,88450.0,0.000855]
[1767119960523,0.02262531,88454.0,88441.0,0.14414]
[1767119961033,0.01130531,88454.0,88441.0,0.14414]
[1767119961547,0.01130518,88455.0,88441.0,0.14414]
[1767119962046,0.01130531,88454.0,88441.0,0.14414]
[1767119962646,0.01130543,88453.0,88441.0,0.14414]
[1767119962835,0.01130531,88454.0,88441.0,0.14414]
[1767119963638,0.01130543,88453.0,88441.0,0.14414]
[1767119964576,0.01130531,88454.0,88441.0,0.14414]
[1767119967282,0.01130543,88453.0,88441.0,0.14414]
[1767119968109,0.01130556,88452.0,88441.0,0.14414]
[1767119968495,0.01130569,88451.0,88441.0,0.14414]
[1767119968683,0.01130582,88450.0,88440.0,0.01132]
[1767119969137,0.56007388,88450.0,88440.0,0.01132]
[1767119969985,0.54876806,88450.0,88440.0,0.01132]
[1767119970643,0.54876806,88450.0,88439.0,0.0002042]
[1767119970859,0.14708,88447.0,88439.0,0.0002042]
[1767119971714,0.56007388,88450.0,88439.0,0.0002042]
[1767119972694,0.01130595,88449.0,88439.0,0.0002042]
[1767119972879,0.54876806,88450.0,88439.0,0.0002042]
[1767119973575,0.56007388,88450.0,88439.0,0.0002042]
[1767119973839,0.01130595,88449.0,88439.0,0.0002042]
[1767119974651,0.01130582,88450.0,88439.0,0.0002042]
[1767119975907,0.01130569,88451.0,88439.0,0.0002042]
[1767119976423,0.01130582,88450.0,88439.0,0.0002042]
[1767119979131,0.01130595,88449.0,88439.0,0.0002042]
[1767119979549,0.01130582,88450.0,88439.0,0.0002042]
[1767119979750,0.01130569,88451.0,88439.0,0.0002042]
[1767119981745,0.01130582,88450.0,88439.0,0.0002042]
[1767119982125,0.01130569,88451.0,88439.0,0.0002042]
[1767119982365,0.06783438,88451.0,88439.0,0.0002042]
[1767119982482,0.01130582,88450.0,88439.0,0.0002042]
[1767119983237,0.01130569,88451.0,88439.0,0.0002042]
[1767119984960,0.01130582,88450.0,88439.0,0.0002042]
[1767119986514,0.01130595,88449.0,88439.0,0.0002042]
[1767119987845,0.01130582,88450.0,88439.0,0.0002042]
[1767119988045,0.01130569,88451.0,88439.0,0.0002042]
[1767119988906,0.01130556,88452.0,88439.0,0.1466142]
[1767119989114,0.0113048,88458.0,88444.0,0.14641]
[1767119989315,0.01132,88455.0,88452.0,0.000549]
[1767119989537,0.01132,88455.0,88452.0,0.00014899]
[1767119989808,0.01132,88455.0,88444.0,0.21424911]
[1767119990019,0.01132,88455.0,88446.0,0.01130633]
[1767119990211,0.01132,88455.0,88446.0,0.15771633]
[1767119991682,0.01132,88455.0,88447.0,0.1577162]
[1767119992063,0.01132,88455.0,88447.0,0.14641]
[1767119996793,0.01132,88455.0,88443.0,0.01130671]
[1767119997364,0.01132,88455.0,88444.0,0.01130658]
[1767119997563,0.01132,88455.0,88442.0,0.15771684]
[1767119997764,0.01132,88455.0,88443.0,0.15771671]
[1767119998283,0.01132,88455.0,88444.0,0.01130658]
[1767119998630,0.01132,88455.0,88443.0,0.15771671]
[1767119998830,0.01132,88455.0,88444.0,0.01130658]
[1767119999472,0.01132,88455.0,88443.0,0.15771671]
[1767119999771,0.01132,88455.0,88443.0,0.01130671]
[1767120000065,0.01132,88455.0,88444.0,0.01130658]
[1767120000456,0.01132,88455.0,88442.0,0.14719684]
[1767120000697,0.01130595,88449.0,88442.0,0.13589]
[1767120000882,0.01130556,88452.0,88436.0,0.13589]
[1767120001064,0.01130582,88450.0,88436.0,0.13589]
[1767120001478,0.01130582,88450.0,88434.0,0.05653923]
[1767120001479,0.1382,88448.0,88434.0,0.01130786]
[1767120001798,0.1382,88446.0,88439.0,0.0111242]
[1767120004632,0.01130582,88450.0,88439.0,0.0111242]
[1767120004855,0.01130595,88449.0,88439.0,0.0111242]
[1767120005060,0.0113062,88447.0,88439.0,0.0111242]
[1767120005235,0.01130607,88448.0,88439.0,0.0111242]
[1767120005666,0.01130595,88449.0,88439.0,0.0111242]
[1767120007316,0.01130582,88450.0,88439.0,0.0111242]
[1767120007940,0.1382,88452.0,88439.0,0.0111242]
[1767120008140,0.14950556,88452.0,88439.0,0.0111242]
[1767120008321,0.14950569,88451.0,88439.0,0.0111242]
[1767120008520,0.1382,88451.0,88439.0,0.0111242]
[1767120009058,0.14950569,88451.0,88439.0,0.0111242]
[1767120009218,0.1382,88451.0,88439.0,0.0111242]
[1767120009425,0.14950569,88451.0,88439.0,0.0111242]
[1767120009628,0.1382,88451.0,88439.0,0.0111242]
[1767120010784,0.1382,88451.0,88439.0,0.02243142]
[1767120011261,0.14950569,88451.0,88439.0,0.0111242]
[1767120011524,0.1382,88451.0,88439.0,0.0111242]
[1767120011910,0.1382,88451.0,88439.0,0.02243142]
[1767120013950,0.1382,88451.0,88439.0,0.0111242]
[1767120014150,0.1382,88451.0,88439.0,0.02243142]
[1767120014560,0.1382,88451.0,88439.0,0.0111242]
[1767120014915,0.1382,88451.0,88439.0,0.02243142]
[1767120016074,0.1382,88451.0,88440.0,0.0113071]
[1767120016270,0.01132,88455.0,88440.0,0.06784217]
[1767120016686,0.01132,88455.0,88441.0,0.01130697]
[1767120016890,0.01132,88455.0,88442.0,0.01130684]
[1767120017508,0.01132,88455.0,88443.0,0.01130671]
[1767120018088,0.01132,88455.0,88441.0,0.01130697]
[1767120018287,0.01132,88455.0,88442.0,0.01130684]
[1767120018487,0.01132,88455.0,88443.0,0.01130671]
[1767120019820,0.01132,88455.0,88443.0,0.16054671]
[1767120020539,0.01132,88455.0,88444.0,0.01130658]
[1767120020753,0.01132,88455.0,88445.0,0.01130646]
[1767120020903,0.01132,88455.0,88444.0,0.0112652]
[1767120021458,0.01132,88455.0,88445.0,0.01130646]
[1767120021642,0.01132,88455.0,88443.0,0.16054671]
[1767120021822,0.01132,88455.0,88445.0,0.01130646]
[1767120022232,0.01132,88455.0,88444.0,0.01130658]
[1767120023722,0.01132,88455.0,88443.0,0.16054671]
[1767120023915,0.01132,88455.0,88444.0,0.01130658]
[1767120024043,0.01132,88455.0,88443.0,0.14924]
[1767120024444,0.01132,88455.0,88443.0,0.16054671]
[1767120024644,0.01132,88455.0,88443.0,0.14924]
[1767120024917,0.15238,88455.0,88441.0,0.01130697]
[1767120025457,0.15238,88455.0,88442.0,0.01130684]
[1767120025895,0.15238,88455.0,88443.0,0.01130671]
[1767120026902,0.15238,88455.0,88442.0,0.01130684]
[1767120027734,0.15238,88455.0,88443.0,0.01130671]
[1767120028087,0.15238,88455.0,88442.0,0.01130684]
[1767120029289,0.16368518,88455.0,88441.0,0.01130697]
[1767120029893,0.15238,88455.0,88442.0,0.01130684]
[1767120030751,0.15238,88455.0,88440.0,0.1605471]
[1767120030950,0.16368518,88455.0,88440.0,0.1605471]
[1767120031401,0.16368518,88455.0,88441.0,0.01130697]
[1767120032318,0.16368518,88455.0,88442.0,0.01130684]
[1767120033062,0.15238,88455.0,88442.0,0.01130684]
[1767120033917,0.15238,88455.0,88441.0,0.06784142]
[1767120034169,0.16368518,88455.0,88441.0,0.01130697]
[1767120034573,0.01130543,88453.0,88440.0,0.69853881]
[1767120034775,0.01130543,88453.0,88433.0,0.02273462]
[1767120034776,0.01130607,88448.0,88433.0,0.02273462]
[1767120034950,0.14106,88449.0,88434.0,0.01130786]
[1767120035151,0.15236595,88449.0,88434.0,0.01130786]
[1767120035473,0.14106,88449.0,88435.0,0.01130774]
[1767120035668,0.01130543,88453.0,88439.0,0.01130722]
[1767120035891,0.14106,88454.0,88439.0,0.56060603]
[1767120036011,0.14106,88454.0,88440.0,0.0113071]
[1767120036678,0.14106,88454.0,88439.0,0.54929881]
[1767120036879,0.14106,88454.0,88438.0,0.14924]
[1767120037107,0.15236531,88454.0,88441.0,0.01130697]
[1767120037308,0.15236531,88454.0,88440.0,0.0113071]
[1767120038476,0.14106,88454.0,88439.0,0.01130722]
[1767120039671,0.15236531,88454.0,88440.0,0.0113071]
[1767120040236,0.14106,88454.0,88441.0,0.01130697]
[1767120040555,0.14106,88454.0,88443.0,0.01130671]
[1767120040944,0.14106,88454.0,88441.0,0.01130697]
[1767120041138,0.14106,88454.0,88442.0,0.01130684]
[1767120041954,0.14106,88454.0,88440.0,0.0113071]
[1767120042151,0.14106,88454.0,88441.0,0.01130697]
[1767120042540,0.14106,88454.0,88442.0,0.01130684]
[1767120044130,0.14106,88454.0,88441.0,0.01130697]
[1767120044274,0.54929881,88452.0,88442.0,0.01130684]
[1767120044482,0.54929881,88452.0,88440.0,0.0113071]
[1767120044686,0.54929881,88450.0,88441.0,0.01130697]
[1767120045366,0.54929881,88450.0,88442.0,0.01130684]
[1767120046188,0.54929881,88452.0,88442.0,0.01130684]
[1767120046328,0.54929881,88452.0,88441.0,0.01130697]
[1767120046531,0.54929881,88452.0,88442.0,0.01130684]
[1767120047005,0.54929881,88452.0,88441.0,0.01130697]
[1767120047145,0.54929881,88452.0,88442.0,0.01130684]
[1767120047341,0.54929881,88452.0,88441.0,0.01130697]
[1767120047966,0.54929881,88452.0,88442.0,0.01130684]
[1767120048902,0.54929881,88452.0,88441.0,0.01130697]
[1767120049257,0.54929881,88452.0,88442.0,0.01130684]
[1767120049917,0.54929881,88452.0,88441.0,0.01130697]
[1767120050114,0.54929881,88452.0,88442.0,0.01130684]
[1767120050295,0.54929881,88452.0,88441.0,0.01130697]
[1767120052512,0.54929881,88452.0,88442.0,0.01130684]
[1767120053999,0.54929881,88452.0,88441.0,0.01130697]
[1767120054340,0.54929881,88452.0,88439.0,0.05653598]
[1767120054496,0.54929881,88450.0,88438.0,0.21708359]
[1767120054701,0.54929881,88450.0,88441.0,0.01130697]
[1767120055887,0.54929881,88450.0,88440.0,0.0113071]
[1767120056251,0.54929881,88450.0,88441.0,0.01130697]
[1767120059184,0.54929881,88451.0,88441.0,0.01130697]
[1767120060090,0.54929881,88451.0,88442.0,0.01130684]
[1767120060590,0.54929881,88451.0,88440.0,0.0113071]
[1767120060750,0.54929881,88451.0,88441.0,0.01130697]
[1767120060951,0.54929881,88451.0,88442.0,0.01130684]
[1767120061541,0.54929881,88451.0,88441.0,0.01130697]
[1767120061742,0.54929881,88451.0,88442.0,0.01130684]
[1767120063406,0.14106,88454.0,88442.0,0.01130684]
[1767120064306,0.14106,88454.0,88441.0,0.01130697]
[1767120064653,0.14106,88454.0,88442.0,0.01130684]
[1767120064967,0.14106,88454.0,88441.0,0.01130697]
[1767120065931,0.01130582,88450.0,88438.0,0.14924]
[1767120066628,0.54929881,88451.0,88439.0,0.01130722]
[1767120067994,0.54929881,88451.0,88440.0,0.0113071]
[1767120069169,0.54929881,88451.0,88439.0,0.01130722]
[1767120069646,0.54929881,88451.0,88440.0,0.0113071]
[1767120069994,0.54929881,88451.0,88439.0,0.01130722]
[1767120070491,0.54929881,88451.0,88440.0,0.0113071]
[1767120070661,0.01130543,88453.0,88439.0,0.01130722]
[1767120070861,0.54929881,88450.0,88439.0,0.01130722]
[1767120071223,0.54929881,88450.0,88440.0,0.0113071]
[1767120071658,0.54929881,88450.0,88439.0,0.01130722]
[1767120071934,0.54929881,88450.0,88440.0,0.0113071]
[1767120075209,0.14106,88454.0,88440.0,0.0113071]
[1767120075435,0.54929881,88450.0,88442.0,0.01130684]
[1767120075741,0.14106,88454.0,88441.0,0.01130697]
[1767120076210,0.14106,88454.0,88442.0,0.01130684]
[1767120076576,0.14106,88454.0,88441.0,0.01130697]
[1767120077024,0.14106,88454.0,88443.0,0.01130671]
[1767120077219,0.14106,88454.0,88442.0,0.01130684]
[1767120078551,0.14106,88454.0,88441.0,0.01130697]
[1767120079570,0.15236531,88454.0,88440.0,0.56060591]
[1767120080321,0.14106,88454.0,88441.0,0.01130697]
[1767120080610,0.15236531,88454.0,88440.0,0.56060591]
[1767120081618,0.15236531,88454.0,88441.0,0.01130697]
[1767120081819,0.15236531,88454.0,88440.0,0.56060591]
[1767120082036,0.15236531,88454.0,88440.0,0.0113071]
[1767120083732,0.01130543,88453.0,88439.0,0.01130722]
[1767120084561,0.15236531,88454.0,88440.0,0.0113071]
[1767120085175,0.15236531,88454.0,88440.0,0.56060591]
[1767120085357,0.15236531,88454.0,88440.0,0.0113071]
[1767120085695,0.15236531,88454.0,88439.0,0.01130722]
[1767120085934,0.14106,88454.0,88441.0,0.01130697]
[1767120086083,0.14106,88454.0,88439.0,0.07242754]
[1767120086486,0.14106,88454.0,88440.0,0.0113071]
[1767120086913,0.15236531,88454.0,88441.0,0.01130697]
[1767120087450,0.14106,88454.0,88441.0,0.01130697]
[1767120087657,0.14106,88454.0,88440.0,0.0113071]
[1767120087658,0.15236531,88454.0,88440.0,0.0113071]
[1767120088731,0.14106,88454.0,88441.0,0.01130697]
[1767120089754,0.15236531,88454.0,88440.0,0.0113071]
[1767120090177,0.15236531,88454.0,88440.0,0.0114269]
[1767120090958,0.15236531,88454.0,88441.0,0.01130697]
[1767120091175,0.15236531,88454.0,88441.0,0.01142677]
[1767120091474,0.15236531,88454.0,88441.0,0.0001198]
[1767120091654,0.14106,88454.0,88441.0,0.01142677]
[1767120095642,0.01130543,88453.0,88441.0,0.0001198]
[1767120095816,0.15236531,88454.0,88441.0,0.0001198]
[1767120096189,0.14106,88454.0,88441.0,0.01142677]
[1767120097842,0.14106,88454.0,88442.0,0.01130684]
[1767120098293,0.02262518,88455.0,88433.0,0.00010663]
[1767120098294,0.13815,88436.0,88433.0,0.00010663]
[1767120098464,0.06784759,88434.0,88419.0,0.01132]
[1767120098606,0.01130786,88434.0,88419.0,0.02262978]
[1767120098806,0.02262774,88435.0,88420.0,0.01130965]
[1767120099007,0.02262774,88435.0,88421.0,0.01130953]
[1767120099208,0.01132,88435.0,88422.0,0.0113094]
[1767120099415,0.01132,88435.0,88421.0,0.01130953]
[1767120099662,0.02262774,88435.0,88421.0,0.01130953]
[1767120099871,0.01132,88435.0,88422.0,0.0113094]
[1767120100820,0.01132,88435.0,88421.0,0.01130953]
[1767120101262,0.01132,88435.0,88422.0,0.0113094]
[1767120101989,0.01132,88435.0,88423.0,0.01154854]
[1767120102214,0.01132,88435.0,88423.0,0.00023927]
[1767120102425,0.01132,88435.0,88423.0,0.01154854]
[1767120102998,0.01132,88435.0,88423.0,0.00023927]
[1767120104000,0.01132,88435.0,88423.0,0.01154854]
[1767120105438,0.01132,88435.0,88423.0,0.00023927]
[1767120106596,0.01132,88435.0,88423.0,0.01154854]
[1767120107989,0.01132,88435.0,88424.0,0.01130914]
[1767120108192,0.01132,88435.0,88423.0,0.01154854]
[1767120112478,0.01132,88435.0,88423.0,0.00023927]
[1767120112635,0.02262774,88435.0,88423.0,0.00023927]
[1767120112835,0.01132,88435.0,88423.0,0.00023927]
[1767120113034,0.23746611,88434.0,88423.0,0.00023927]
[1767120113277,0.02262774,88435.0,88410.0,0.01132]
[1767120113278,0.06785395,88426.0,88410.0,0.01132]
[1767120113575,0.01132,88426.0,88415.0,0.14103]
[1767120113807,0.02262889,88426.0,88415.0,0.14103]
[1767120113956,0.07917334,88426.0,88415.0,0.14103]
[1767120114157,0.06785447,88425.0,88415.0,0.14103]
[1767120114323,0.01130914,88424.0,88415.0,0.14103]
[1767120115204,0.01132,88426.0,88415.0,0.14103]
[1767120117079,0.02262889,88426.0,88415.0,0.14103]
[1767120119029,0.54932023,88430.0,88415.0,0.14103]
[1767120119229,0.45215452,88466.0,88414.0,0.01131042]
[1767120119230,0.06783535,88450.0,88434.0,0.14602]
[1767120119433,0.01130595,88449.0,88436.0,0.13900712]
[1767120119594,0.0565279,88452.0,88436.0,0.13900712]
[1767120119793,0.01130607,88448.0,88436.0,0.13900712]
[1767120120020,0.01130595,88449.0,88436.0,0.13900712]
[1767120120223,0.0113062,88447.0,88436.0,0.13900712]
[1767120120436,0.01130607,88448.0,88436.0,0.13900712]
[1767120120845,0.01130889,88426.0,88409.0,0.0608523]
[1767120121059,0.01130889,88426.0,88403.0,0.0001954]
[1767120121060,0.01131068,88412.0,88403.0,0.0001954]
[1767120121262,0.0113117,88404.0,88397.0,0.00035627]
[1767120121463,0.01131157,88405.0,88397.0,0.00035627]
[1767120121672,0.23753062,88414.0,88397.0,0.14637627]
[1767120121673,0.01131106,88409.0,88397.0,0.14637627]
[1767120121970,0.14832,88409.0,88397.0,0.00035627]
[1767120122147,0.14832,88409.0,88397.0,0.01162809]
[1767120122348,0.14832,88409.0,88397.0,0.00031549]
[1767120122547,0.14832,88409.0,88397.0,0.01162809]
[1767120122751,0.14832,88409.0,88398.0,0.01131247]
[1767120122932,0.14832,88409.0,88397.0,0.00031549]
[1767120123139,0.14832,88409.0,88398.0,0.01131247]
[1767120123851,0.14832,88409.0,88397.0,0.01162809]
[1767120124055,0.14832,88409.0,88399.0,0.01131234]
[1767120124253,0.15964,88414.0,88409.0,0.0005063]
[1767120124456,0.17095042,88414.0,88400.0,0.01131221]
[1767120124864,0.15964,88414.0,88399.0,0.01131234]
[1767120125089,0.17095042,88414.0,88400.0,0.01131221]
[1767120125295,0.17095042,88414.0,88400.0,0.01127139]
[1767120125652,0.15964,88414.0,88400.0,0.01127139]
[1767120125851,0.01132,88414.0,88401.0,0.15733208]
[1767120126049,0.01132,88414.0,88402.0,0.01131196]
[1767120126249,0.01131017,88416.0,88401.0,0.01131208]
[1767120126471,0.01131017,88416.0,88399.0,0.06787346]
[1767120126472,0.14832,88412.0,88399.0,0.01131234]
[1767120126948,0.14832,88412.0,88400.0,0.01131221]
[1767120127118,0.14832,88412.0,88397.0,0.00031549]
[1767120127319,0.15963068,88412.0,88397.0,0.01162809]
[1767120127685,0.01131106,88409.0,88397.0,0.00027349]
[1767120128244,0.70895116,88410.0,88397.0,0.00027349]
[1767120128447,0.69764023,88410.0,88397.0,0.00027349]
[1767120129419,0.70895116,88410.0,88397.0,0.00027349]
[1767120129627,0.15964,88415.0,88398.0,0.15733247]
[1767120129827,0.17095029,88415.0,88400.0,0.01131221]
[1767120130027,0.02263029,88415.0,88402.0,0.14602]
[1767120130358,0.02263029,88415.0,88402.0,0.15733196]
[1767120130359,0.01132,88415.0,88402.0,0.15733196]
[1767120130565,0.01132,88414.0,88404.0,0.14602]
[1767120130764,0.01132,88414.0,88404.0,0.14597691]
[1767120130980,0.01131029,88415.0,88404.0,0.14597691]
[1767120131188,0.01132,88413.0,88404.0,0.14597691]
[1767120133365,0.01132,88413.0,88404.0,0.14593569]
[1767120136608,0.01132,88413.0,88404.0,0.14483569]
[1767120137395,0.01132,88413.0,88404.0,0.14479183]
[1767120138330,0.01132,88413.0,88404.0,0.14475117]
[1767120141052,0.01131068,88412.0,88397.0,0.14865609]
[1767120141263,0.02263055,88413.0,88397.0,0.14865609]
[1767120141660,0.0113108,88411.0,88397.0,0.14865609]
[1767120141865,0.0113108,88411.0,88397.0,0.13734349]
[1767120143572,0.0113108,88411.0,88397.0,0.14865609]
[1767120144769,0.01131106,88409.0,88397.0,0.00027349]
[1767120144947,0.54932023,88410.0,88397.0,0.00027349]
[1767120145301,0.56063116,88410.0,88397.0,0.00027349]
[1767120145502,0.54932023,88410.0,88397.0,0.01158609]
[1767120145826,0.54932023,88410.0,88397.0,0.00027349]
[1767120147847,0.56063116,88410.0,88397.0,0.00027349]
[1767120149156,0.14187,88412.0,88397.0,0.00027349]
[1767120149417,0.15318068,88412.0,88398.0,0.01131247]
[1767120149819,0.14187,88412.0,88399.0,0.01131234]
[1767120150026,0.14187,88412.0,88400.0,0.01131221]
[1767120150246,0.14187,88412.0,88399.0,0.01131234]
[1767120150453,0.01132,88413.0,88402.0,0.01131196]
[1767120151219,0.01132,88413.0,88403.0,0.01131183]
[1767120151418,0.01132,88413.0,88402.0,0.01131196]
[1767120151913,0.01132,88413.0,88403.0,0.01131183]
[1767120152069,0.01132,88413.0,88402.0,0.01131196]
[1767120152278,0.01132,88413.0,88401.0,0.01131208]
[1767120152491,0.01132,88413.0,88402.0,0.01131196]
[1767120153143,0.01132,88413.0,88398.0,0.01131247]
[1767120153418,0.01131093,88410.0,88396.0,0.01131272]
[1767120153650,0.54932023,88410.0,88396.0,0.01131272]
[1767120153848,0.56063116,88410.0,88396.0,0.01131272]
[1767120154205,0.56063116,88410.0,88395.0,0.01131285]
[1767120154534,0.01131119,88408.0,88394.0,0.13707]
[1767120154722,0.01131106,88409.0,88394.0,0.13707]
[1767120154723,0.01131132,88407.0,88394.0,0.13707]
[1767120154950,0.01131132,88407.0,88393.0,0.01132]
[1767120154951,0.01131183,88403.0,88397.0,4.9e-07]
[1767120155151,0.14187,88401.0,88397.0,4.9e-07]
[1767120155377,0.0113117,88404.0,88397.0,4.9e-07]
[1767120155575,0.01131157,88405.0,88397.0,4.9e-07]
[1767120155772,0.20978744,88406.0,88397.0,4.9e-07]
[1767120155773,0.15323,88406.0,88397.0,4.9e-07]
[1767120156657,0.16454144,88406.0,88397.0,4.9e-07]
[1767120156863,0.16454144,88406.0,88379.0,0.08077651]
[1767120156864,0.01131285,88395.0,88379.0,0.08077651]
[1767120157071,0.01131285,88395.0,88378.0,0.0004]
[1767120157072,0.01131336,88391.0,88378.0,0.13747]
[1767120157273,0.01131324,88392.0,88378.0,0.13747]
[1767120157464,0.01131298,88394.0,88380.0,0.01131477]
[1767120158005,0.16454285,88395.0,88380.0,0.01139908]
[1767120158379,0.01131298,88394.0,88381.0,0.01131464]
[1767120158591,0.55010358,88391.0,88380.0,0.01139908]
[1767120158811,0.55010358,88391.0,88381.0,0.01131464]
[1767120159220,0.55010358,88391.0,88380.0,8.431e-05]
[1767120159448,0.55010358,88391.0,88380.0,0.01139908]
[1767120159594,0.55010358,88391.0,88381.0,0.05657324]
[1767120160217,0.55010358,88391.0,88381.0,0.01131464]
[1767120160430,0.69197358,88391.0,88380.0,8.431e-05]
[1767120160601,0.69197358,88391.0,88382.0,0.01131452]
[1767120160783,0.69197358,88391.0,88383.0,0.01131439]
[1767120161532,0.69197358,88391.0,88382.0,0.01131452]
[1767120161683,0.69197358,88391.0,88383.0,0.01131439]
[1767120161880,0.14187,88391.0,88382.0,0.01131452]
[1767120162589,0.14187,88391.0,88383.0,0.01131439]
[1767120162788,0.14187,88391.0,88382.0,0.01131452]
[1767120164589,0.14187,88391.0,88383.0,0.01131439]
[1767120165317,0.14187,88391.0,88382.0,0.01131452]
[1767120165571,0.14187,88391.0,88381.0,0.01131464]
[1767120166299,0.55010358,88391.0,88382.0,0.01131452]
[1767120166449,0.55010358,88391.0,88383.0,0.01131439]
[1767120166855,0.55010358,88391.0,88380.0,8.431e-05]
[1767120167216,0.55010358,88391.0,88381.0,0.01131464]
[1767120167422,0.55010358,88391.0,88380.0,0.01139908]
[1767120167657,0.55010358,88391.0,88380.0,8.431e-05]
[1767120167861,0.55010358,88391.0,88381.0,0.01131464]
[1767120168266,0.01136,88395.0,88382.0,0.01131452]
[1767120168424,0.55010358,88391.0,88382.0,0.01131452]
[1767120169083,0.55010358,88391.0,88381.0,0.01131464]
[1767120169459,0.01131285,88395.0,88382.0,0.14915452]
[1767120169663,0.33929467,88419.0,88380.0,0.01139908]
[1767120169664,0.01171503,88403.0,88388.0,0.14915375]
[1767120169842,0.14202,88408.0,88388.0,0.13784]
[1767120169843,0.55010358,88400.0,88388.0,0.13784]
[1767120170270,0.01131247,88398.0,88388.0,0.13784]
[1767120170469,0.01131234,88399.0,88385.0,0.01131413]
[1767120170697,0.01131272,88396.0,88383.0,0.13784]
[1767120170859,0.01131298,88394.0,88383.0,0.13784]
[1767120171060,0.02267285,88395.0,88383.0,0.13784]
[1767120171262,0.55010358,88393.0,88380.0,8.431e-05]
[1767120171475,0.55010358,88391.0,88380.0,8.431e-05]
[1767120171789,0.55010358,88391.0,88380.0,0.01139908]
[1767120172636,0.55010358,88391.0,88380.0,0.01128512]
[1767120172845,0.55010358,88391.0,88379.0,0.0113149]
[1767120172846,0.69212358,88391.0,88379.0,0.0113149]
[1767120173148,0.55010358,88390.0,88380.0,0.01131477]
[1767120173306,0.55010358,88390.0,88381.0,0.01131464]
[1767120173959,0.55010358,88390.0,88380.0,0.01131477]
[1767120174259,0.55010358,88390.0,88379.0,0.01142139]
[1767120174488,0.55010358,88390.0,88380.0,0.01131477]
[1767120175040,0.55010358,88390.0,88381.0,0.01131464]
[1767120175236,0.55010358,88390.0,88383.0,0.01131439]
[1767120175489,0.69212358,88393.0,88383.0,0.01131439]
[1767120175639,0.55010358,88393.0,88382.0,0.01131452]
[1767120175847,0.01136,88395.0,88384.0,0.01131426]
[1767120176428,0.01136,88395.0,88382.0,0.13784]
[1767120176629,0.01136,88395.0,88383.0,0.01131439]
[1767120177074,0.1533326,88397.0,88383.0,0.01131439]
[1767120177075,0.14202,88397.0,88384.0,0.01131426]
[1767120177246,0.01136,88396.0,88385.0,0.01131413]
[1767120177445,0.01136,88396.0,88384.0,0.01131426]
[1767120177676,0.01136,88396.0,88382.0,0.14915452]
[1767120177879,0.55010358,88392.0,88380.0,0.05657365]
[1767120178083,0.55010358,88390.0,88381.0,0.01131464]
[1767120178294,0.01136,88389.0,88381.0,0.01131464]
[1767120178731,0.01136,88389.0,88382.0,0.01131452]
[1767120179034,0.55010358,88392.0,88383.0,0.01131439]
[1767120179230,0.01136,88388.0,88382.0,0.01131452]
[1767120179456,0.011088,88388.0,88379.0,0.01142139]
[1767120179658,0.011088,88388.0,88380.0,0.01131477]
[1767120180369,0.011088,88388.0,88368.0,0.01147891]
[1767120180370,0.000549,88380.0,88368.0,0.01147891]
[1767120180538,0.55065258,88380.0,88368.0,0.1461026]
[1767120180744,0.55065258,88380.0,88371.0,0.01131592]
[1767120180904,0.55010358,88380.0,88372.0,0.0113158]
[1767120181110,0.55010358,88382.0,88373.0,0.01131567]
[1767120181311,0.55010358,88382.0,88374.0,0.01131554]
[1767120181509,0.55010358,88384.0,88374.0,0.01127392]
[1767120181714,0.55010358,88384.0,88375.0,0.01131541]
[1767120182068,0.011088,88388.0,88376.0,0.01131528]
[1767120182397,0.011088,88388.0,88376.0,0.15725528]
[1767120183891,0.011088,88388.0,88376.0,0.14594]
[1767120184051,0.011088,88388.0,88376.0,0.15725528]
[1767120184253,0.14784,88385.0,88371.0,0.01131592]
[1767120184475,0.01136,88384.0,88374.0,0.14594]
[1767120184674,0.56146358,88384.0,88374.0,0.14594]
[1767120184855,0.01136,88384.0,88374.0,0.14594]
[1767120186463,0.01136,88384.0,88374.0,0.15725554]
[1767120187100,0.01136,88384.0,88375.0,0.01131541]
[1767120189282,0.01136,88384.0,88374.0,0.15725554]
[1767120189503,0.01136,88384.0,88374.0,0.14594]
[1767120190130,0.56146358,88384.0,88374.0,0.14594]
[1767120191390,0.56135045,88384.0,88374.0,0.14594]
[1767120193851,0.56135045,88384.0,88374.0,0.15725554]
[1767120194000,0.01069787,88384.0,88375.0,0.15725541]
[1767120194202,0.01069787,88384.0,88375.0,0.14594]